bitfinex/quotes_SOLUSD_20240727
["timestamp","ask_amount","ask_price","bid_price","bid_amount"]
[1722086352939,15.3973,187.06,186.99,5.3476]
[1722086353438,15.3973,187.06,186.97,13.3704]
[1722086353636,25.8462,187.05,186.96,5.3487]
[1722086353833,0.5,187.04,186.96,5.3487]
[1722086354032,20.7432,187.06,186.95,13.3718]
[1722086354426,20.7432,187.06,187.0,5.3475]
[1722086354427,15.3973,187.06,187.0,5.3475]
[1722086354620,15.3973,187.06,186.97,13.3704]
[1722086354621,15.3973,187.06,186.99,5.3478]
[1722086354816,0.5,187.05,186.97,18.7186]
[1722086355028,5.8465,187.04,186.93,13.3734]
[1722086355339,65.0,187.03,186.93,13.3734]
[1722086355515,11.6899,187.01,186.91,5.3498]
[1722086355721,65.5,187.0,186.91,5.3498]
[1722086355938,65.5,187.0,186.86,13.3789]
[1722086355939,20.0,186.95,186.86,13.3789]
[1722086356123,20.0,186.96,186.88,5.3509]
[1722086356322,20.0,186.96,186.87,5.3512]
[1722086356323,5.3487,186.96,186.87,5.3512]
[1722086356518,0.5,186.95,186.87,5.3512]
[1722086356820,45.5,186.95,186.83,6.5774]
[1722086357133,5.3496,186.93,186.84,5.3519]
[1722086357331,5.8498,186.92,186.82,13.3813]
[1722086357535,0.5,186.92,186.84,5.3519]
[1722086357742,0.5,186.92,186.83,5.3524]
[1722086358246,0.5,186.92,186.84,5.3521]
[1722086358444,0.5,186.92,186.82,13.3813]
[1722086358445,45.0,186.93,186.85,5.3518]
[1722086358631,65.5,186.95,186.85,5.3518]
[1722086358632,70.849,186.95,186.85,5.3518]
[1722086358947,70.849,186.95,186.84,5.3521]
[1722086358948,20.0,186.93,186.84,5.3521]
[1722086359139,5.3493,186.94,186.85,5.3518]
[1722086359449,65.5,186.93,186.85,5.3518]
[1722086359752,0.5,186.92,186.83,5.3522]
[1722086359916,0.5,186.92,186.82,13.3813]
[1722086359917,5.8498,186.92,186.82,13.3813]
[1722086360534,0.5,186.92,186.82,13.3813]
[1722086360737,65.5,186.93,186.82,13.3813]
[1722086361144,65.5,186.93,186.85,5.3518]
[1722086361332,0.5,186.92,186.83,5.3522]
[1722086361519,20.0,186.92,186.83,5.3524]
[1722086361719,20.0,186.92,186.84,5.3521]
[1722086361720,0.5,186.91,186.84,5.3521]
[1722086362121,20.0,186.92,186.85,5.3517]
[1722086362859,45.5,186.93,186.85,5.3517]
[1722086363940,20.5,186.92,186.83,5.3522]
[1722086364337,20.0,186.92,186.84,5.352]
[1722086364541,20.0,186.92,186.85,5.3518]
[1722086364855,0.5,186.91,186.84,5.352]
[1722086365238,20.0,186.92,186.84,5.352]
[1722086365424,20.0,186.92,186.85,5.3518]
[1722086365625,45.5,186.93,186.85,13.3792]
[1722086365842,45.0,186.94,186.87,5.3511]
[1722086366025,2.4218386,186.98,186.9,5.3502]
[1722086366026,0.5,186.98,186.9,5.3502]
[1722086366224,35.8973,186.99,186.91,5.3501]
[1722086366449,20.0,186.97,186.88,13.3775]
[1722086366747,5.8488,186.96,186.88,13.3775]
[1722086366953,0.5,186.97,186.88,13.3775]
[1722086367534,25.3484,186.97,186.88,13.3775]
[1722086367742,0.5,186.96,186.88,13.3775]
[1722086368043,0.5,186.95,186.88,13.3775]
[1722086368220,20.0,186.97,186.88,18.7284]
[1722086368426,0.5,186.96,186.88,18.7284]
[1722086369147,0.5,186.96,186.89,5.3507]
[1722086369351,0.5,186.98,186.9,5.3504]
[1722086369542,0.5,186.98,186.88,13.3775]
[1722086369543,45.5,186.98,186.88,18.7282]
[1722086369851,50.8484,186.98,186.88,18.7282]
[1722086370154,50.8484,186.98,186.89,5.3506]
[1722086370333,45.5,186.98,186.88,13.3775]
[1722086370654,5.3488,186.96,186.88,13.3775]
[1722086370856,5.8488,186.96,186.88,13.3775]
[1722086371034,0.5,186.95,186.88,13.3775]
[1722086371351,45.0,186.98,186.88,13.3775]
[1722086371556,0.5,186.98,186.91,5.3501]
[1722086371851,0.5,186.98,186.91,5.3499]
[1722086372056,15.3973,186.99,186.92,5.3497]
[1722086372352,15.3973,186.99,186.93,5.3495]
[1722086372527,5.3468,187.03,186.94,5.3491]
[1722086372957,5.3468,187.03,186.95,5.349]
[1722086373134,22.06055922,187.04,186.96,5.3487]
[1722086373448,16.4957,187.04,186.97,1.06960972]
[1722086373754,16.4957,187.04,186.96,5.3486]
[1722086373960,21.8422,187.04,186.95,5.349]
[1722086374132,20.0,187.03,186.93,13.3733]
[1722086374451,16.9957,187.04,186.9,18.7264]
[1722086374452,5.3479,186.99,186.9,18.7264]
[1722086374677,20.0,187.01,186.9,13.376]
[1722086374678,0.5,187.0,186.9,13.376]
[1722086374859,20.0,187.03,186.93,18.7232]
[1722086374860,5.3473,187.02,186.93,18.7232]
[1722086375153,5.3476,187.0,186.91,5.3499]
[1722086375732,5.3473,187.01,186.92,5.3498]
[1722086376135,5.3473,187.01,186.9,18.7262]
[1722086376136,20.0,187.0,186.9,18.7262]
[1722086376336,45.0,186.99,186.9,18.7262]
[1722086376552,45.0,186.99,186.91,5.3501]
[1722086376745,45.0,186.99,186.92,5.3498]
[1722086377062,5.3476,187.0,186.9,18.7261]
[1722086377241,5.3476,187.0,186.91,5.35]
[1722086377439,0.5,187.01,186.92,5.3498]
[1722086377655,50.8473,187.01,186.92,5.3498]
[1722086378051,45.0,187.01,186.93,5.3494]
[1722086378355,16.4957,187.04,186.97,5.3483]
[1722086378771,16.4957,187.04,186.96,13.3717]
[1722086379140,6.4271,187.07,187.0,5.3474]
[1722086379456,21.8407,187.09,187.01,5.3472]
[1722086379849,21.8407,187.09,187.03,5.3464]
[1722086379850,16.4957,187.09,187.03,5.3464]
[1722086380163,16.4957,187.09,187.02,18.7142]
[1722086380164,16.9957,187.09,187.02,18.7142]
[1722086380468,36.9957,187.09,186.98,13.3697]
[1722086380758,5.3453,187.08,186.99,5.3478]
[1722086380972,0.5,187.07,187.0,5.3474]
[1722086381155,0.5,187.07,186.99,5.3478]
[1722086381760,0.5,187.07,187.0,5.3475]
[1722086381939,0.5,187.07,187.01,13.3675]
[1722086382139,0.5,187.07,186.99,5.3477]
[1722086382544,0.5,187.07,187.0,5.3475]
[1722086383064,0.5,187.07,186.99,5.3478]
[1722086383579,0.5,187.07,187.0,5.3475]
[1722086383881,0.5,187.07,186.98,13.3703]
[1722086384168,25.8458,187.07,186.95,13.3724]
[1722086384371,45.0,187.06,186.95,13.3724]
[1722086384667,50.3459,187.06,186.98,5.3481]
[1722086384972,50.3459,187.06,186.97,5.3484]
[1722086385357,15.3277,187.0,186.91,19.6682]
[1722086385548,15.3277,187.0,186.91,13.3748]
[1722086385549,20.5,186.99,186.91,13.3748]
[1722086385756,0.5,186.98,186.91,13.3748]
[1722086386252,45.5,186.98,186.91,13.3748]
[1722086386449,45.5,186.98,186.91,18.7249]
[1722086387346,45.0,186.98,186.91,18.7249]
[1722086387761,0.5,186.97,186.91,13.3748]
[1722086388072,15.3277,187.0,186.92,5.3496]
[1722086388262,15.3277,187.0,186.91,13.3748]
[1722086388470,45.0,186.99,186.92,5.3498]
[1722086388974,0.5,186.98,186.91,13.3748]
[1722086389179,0.5,186.98,186.91,18.7249]
[1722086389471,45.0,186.99,186.92,5.3497]
[1722086389683,45.0,186.99,186.91,18.7249]
[1722086389863,0.5,186.98,186.91,13.3748]
[1722086390345,20.5,186.98,186.91,13.3748]
[1722086390770,20.0,186.98,186.91,13.3748]
[1722086390959,45.5,186.99,186.91,13.3748]
[1722086391156,45.5,186.99,186.91,18.7249]
[1722086391360,20.0,186.98,186.91,13.3748]
[1722086391558,45.5,186.99,186.91,18.7249]
[1722086391761,20.0,186.98,186.91,13.3748]
[1722086392555,0.5,186.97,186.89,5.3507]
[1722086392771,5.8484,186.97,186.88,5.3509]
[1722086392975,20.0,186.98,186.9,5.3502]
[1722086393167,51.0616044,186.99,186.89,13.3762]
[1722086393475,51.0616044,186.99,186.9,5.3504]
[1722086393476,20.0,186.98,186.9,5.3504]
[1722086393651,20.5,186.98,186.89,13.3762]
[1722086393858,20.0,186.94,186.86,13.3789]
[1722086394052,0.5,186.93,186.86,18.7304]
[1722086394677,5.349,186.95,186.86,18.7304]
[1722086394892,45.5,186.94,186.86,18.7304]
[1722086395257,45.0,186.94,186.86,18.7304]
[1722086395488,70.3493,186.94,186.86,18.7304]
[1722086395695,0.5,186.93,186.86,13.3789]
[1722086396876,0.5,186.93,186.86,18.7304]
[1722086397277,45.0,186.94,186.86,18.7304]
[1722086397460,45.0,186.94,186.86,13.3789]
[1722086397658,45.0,186.95,186.87,5.351]
[1722086397863,6.1646,186.96,186.86,13.3789]
[1722086398168,20.5,186.95,186.86,13.3789]
[1722086398678,0.5,186.95,186.86,13.3789]
[1722086398851,45.5,186.95,186.86,13.3789]
[1722086399350,50.849,186.95,186.87,5.3512]
[1722086399755,50.849,186.95,186.86,18.7304]
[1722086399955,65.5,186.95,186.86,18.7304]
[1722086400156,50.349,186.95,186.86,18.7304]
[1722086400377,0.5,186.94,186.86,13.3789]
[1722086400678,0.5,186.94,186.86,18.7304]
[1722086400880,70.349,186.95,186.86,18.7304]
[1722086401081,5.8493,186.94,186.86,18.7304]
[1722086401288,5.3496,186.93,186.83,13.381]
[1722086401454,5.8499,186.92,186.83,18.7333]
[1722086401878,5.8499,186.92,186.84,5.3521]
[1722086402178,5.8499,186.92,186.83,13.381]
[1722086402179,15.9813,186.91,186.83,18.7333]
[1722086402581,16.4813,186.91,186.83,18.7333]
[1722086403161,21.8315,186.91,186.83,18.7333]
[1722086403364,50.3506,186.9,186.81,5.3527]
[1722086403583,15.9813,186.91,186.83,5.3522]
[1722086403787,15.9813,186.91,186.83,13.3811]
[1722086404084,15.9813,186.91,186.85,18.7307]
[1722086405473,15.9813,186.91,186.85,13.3791]
[1722086405979,15.9813,186.91,186.83,5.3521]
[1722086406287,15.9813,186.91,186.84,5.352]
[1722086406490,15.9813,186.91,186.83,5.3524]
[1722086406778,70.8504,186.9,186.82,13.3816]
[1722086406976,0.5,186.89,186.82,13.3816]
[1722086407378,0.5,186.89,186.82,18.7342]
[1722086408787,5.8507,186.89,186.81,5.3529]
[1722086409089,15.9813,186.91,186.81,26.7637]
[1722086409392,15.9813,186.91,186.89,5.3507]
[1722086409685,15.4651,186.95,186.88,5.351]
[1722086410063,15.4651,186.95,186.88,5.3509]
[1722086410064,15.9651,186.95,186.88,5.3509]
[1722086410572,5.3498,186.93,186.84,5.3521]
[1722086410763,5.3498,186.93,186.78,24.7]
[1722086410764,15.4651,186.95,186.83,1.07030309]
[1722086410970,15.4651,186.95,186.88,5.3509]
[1722086411461,15.4651,186.95,186.87,5.3513]
[1722086411776,15.4651,186.95,186.86,13.3784]
[1722086412281,15.4651,186.95,186.87,5.351]
[1722086412664,15.4651,186.95,186.89,13.3767]
[1722086413283,5.3478,187.0,186.91,5.3501]
[1722086413284,5.3476,187.0,186.91,5.3501]
[1722086413489,15.4651,186.99,186.92,5.3498]
[1722086413666,15.4651,186.99,186.89,13.3767]
[1722086413667,0.5,186.98,186.89,13.3767]
[1722086414181,15.4651,186.99,186.93,5.3495]
[1722086414375,15.4651,186.99,186.91,13.3747]
[1722086414785,15.4651,186.99,186.94,5.349]
[1722086415290,25.3488,186.96,186.85,6.3268]
[1722086415489,20.5,186.98,186.85,6.3268]
[1722086415669,45.0,186.97,186.85,19.7058]
[1722086415862,26.3575,186.96,186.85,13.379]
[1722086416069,5.3499,186.92,186.83,5.3522]
[1722086416268,5.3499,186.92,186.82,13.3816]
[1722086416269,5.8502,186.91,186.82,13.3816]
[1722086416467,20.8156,186.9,186.82,18.7342]
[1722086416681,0.5,186.89,186.82,13.3816]
[1722086416899,0.5,186.89,186.82,18.7342]
[1722086417695,0.5,186.89,186.83,5.3524]
[1722086417868,0.5,186.89,186.8,6.3268]
[1722086417869,15.4651,186.9,186.85,13.3795]
[1722086418073,15.4651,186.9,186.8,31.0268]
[1722086418286,15.4651,186.9,186.82,18.7341]
[1722086418583,15.4651,186.9,186.82,13.3817]
[1722086418584,0.5,186.89,186.82,13.3817]
[1722086418800,0.5,186.89,186.82,18.7344]
[1722086419170,15.4651,186.9,186.82,13.3817]
[1722086419776,15.4651,186.9,186.84,5.352]
[1722086419989,15.4651,186.9,186.88,5.3508]
[1722086420185,6.3575,186.96,186.88,5.3508]
[1722086420186,15.9651,186.94,186.88,5.3508]
[1722086420375,15.9651,186.94,186.89,5.3506]
[1722086420576,15.9651,186.94,186.88,5.351]
[1722086420793,15.9651,186.94,186.87,13.3777]
[1722086420981,15.9651,186.94,186.83,13.3805]
[1722086421179,20.0,186.91,186.83,18.7327]
[1722086421380,0.5,186.9,186.83,13.3805]
[1722086421780,0.5,186.9,186.83,18.7328]
[1722086421984,0.5,186.9,186.85,5.3518]
[1722086422193,0.5,186.92,186.86,13.3789]
[1722086422573,0.5,186.92,186.85,5.3518]
[1722086422775,0.5,186.92,186.84,5.3521]
[1722086423089,0.5,186.92,186.83,13.3809]
[1722086423090,20.5,186.92,186.83,13.3809]
[1722086423283,20.5,186.92,186.77,51.4703]
[1722086423284,20.0,186.88,186.8,5.353]
[1722086423473,0.5,186.87,186.8,5.353]
[1722086424106,0.5,186.87,186.81,5.3528]
[1722086424400,20.5,186.9,186.82,5.3525]
[1722086424586,45.0,186.89,186.82,5.3525]
[1722086424993,0.5,186.88,186.81,5.353]
[1722086425181,0.5,186.88,186.79,13.3834]
[1722086425396,0.5,186.88,186.81,5.353]
[1722086425681,20.5,186.88,186.8,5.3532]
[1722086426887,25.851,186.88,186.8,5.3532]
[1722086427215,21.959,186.87,186.79,18.7369]
[1722086427389,0.5,186.86,186.79,18.7369]
[1722086427577,20.5,186.85,186.79,13.3834]
[1722086427974,20.5,186.85,186.76,18.7402]
[1722086428198,45.0,186.84,186.77,5.3541]
[1722086428403,0.5,186.83,186.77,5.3541]
[1722086428997,0.5,186.86,186.76,13.386]
[1722086429198,0.5,186.86,186.79,5.3535]
[1722086429199,45.0,186.86,186.79,5.3535]
[1722086429374,45.0,186.86,186.72,44.49022443]
[1722086429375,45.0,186.86,186.8,5.3532]
[1722086430493,20.0,186.85,186.78,18.7378]
[1722086430693,20.5,186.85,186.78,13.3842]
[1722086430894,20.0,186.85,186.78,18.738]
[1722086431499,45.0,186.86,186.78,18.738]
[1722086431711,45.0,186.86,186.79,5.3535]
[1722086431895,0.5,186.85,186.79,5.3535]
[1722086432085,0.5,186.85,186.78,13.3842]
[1722086432414,0.5,186.86,186.79,5.3533]
[1722086432923,0.5,186.86,186.8,5.3532]
[1722086433279,0.5,186.86,186.79,5.3535]
[1722086434004,20.5,186.85,186.79,5.3535]
[1722086434412,47.3104,186.87,186.78,13.3842]
[1722086434604,45.0,186.86,186.8,5.3532]
[1722086434797,41.959,186.87,186.8,5.3532]
[1722086435304,45.5,186.86,186.79,5.3535]
[1722086435501,20.0,186.85,186.79,5.3535]
[1722086435703,20.0,186.85,186.78,18.738]
[1722086436209,20.0,186.85,186.79,5.3536]
[1722086437982,45.0,186.86,186.78,13.3842]
[1722086438189,45.0,186.86,186.8,13.3828]
[1722086438516,45.0,186.86,186.81,5.3528]
[1722086439017,65.0,186.86,186.8,13.3828]
[1722086439222,65.0,186.86,186.8,18.7361]
[1722086439223,77.41,186.86,186.8,18.7361]
[1722086439405,0.5,186.85,186.8,18.7361]
[1722086439603,77.41,186.86,186.81,5.353]
[1722086440004,77.41,186.86,186.8,18.736]
[1722086442122,77.41,186.86,186.8,13.3828]
[1722086442706,22.459,186.87,186.8,13.3828]
[1722086442916,0.5,186.85,186.81,5.3528]
[1722086443221,12.41,186.86,186.8,18.736]
[1722086443419,12.41,186.85,186.8,18.736]
[1722086443628,32.41,186.85,186.78,12.41]
[1722086443804,32.41,186.82,186.72,26.777]
[1722086444008,12.91,186.81,186.75,5.3545]
[1722086444216,12.41,186.81,186.75,5.3545]
[1722086444404,12.91,186.81,186.75,5.3545]
[1722086444726,12.41,186.81,186.75,5.3545]
[1722086446127,12.41,186.82,186.76,5.3543]
[1722086446315,12.41,186.82,186.75,12.41]
[1722086446316,0.5,186.81,186.75,12.41]
[1722086446710,12.41,186.83,186.77,13.3854]
[1722086446908,12.91,186.83,186.77,31.1493]
[1722086447216,12.91,186.86,186.79,12.41]
[1722086447420,0.5,186.86,186.8,12.41]
[1722086447736,0.5,186.86,186.8,17.763]
[1722086448032,35.6771,186.87,186.8,17.763]
[1722086448325,48.0871,186.87,186.8,17.763]
[1722086448530,12.41,186.86,186.8,17.763]
[1722086448712,12.41,186.86,186.8,5.353]
[1722086449127,35.6771,186.87,186.8,5.353]
[1722086449435,0.5,186.86,186.79,13.3834]
[1722086449622,0.5,186.85,186.79,13.3834]
[1722086450702,5.3516,186.86,186.79,13.3834]
[1722086451115,0.5,186.85,186.79,13.3834]
[1722086451503,0.5,186.85,186.76,5.3541]
[1722086451504,20.0,186.84,186.76,5.3541]
[1722086453216,25.3522,186.84,186.76,5.3541]
[1722086453414,0.5,186.83,186.76,5.3541]
[1722086453622,20.0,186.82,186.75,38.7409]
[1722086453819,20.0,186.82,186.76,5.3544]
[1722086454025,20.0,186.84,186.77,5.354]
[1722086454330,20.5,186.84,186.77,5.354]
[1722086454506,20.5,186.84,186.78,5.3538]
[1722086454710,20.5,186.84,186.77,5.3541]
[1722086454711,20.0,186.84,186.77,5.3541]
[1722086455028,0.5,186.85,186.79,5.3535]
[1722086455239,0.5,186.85,186.8,5.3532]
[1722086455843,16.1771,186.87,186.8,5.3532]
[1722086457011,16.1771,186.87,186.79,5.3535]
[1722086457213,0.5,186.86,186.79,5.3535]
[1722086457823,0.5,186.85,186.78,13.3846]
[1722086458429,20.0,186.84,186.76,5.3542]
[1722086459232,25.3522,186.84,186.76,5.3542]
[1722086459736,0.5,186.83,186.76,5.3542]
[1722086459924,0.5,186.83,186.75,33.3866]
[1722086460125,0.5,186.85,186.79,5.3534]
[1722086460328,20.0,186.86,186.79,5.3534]
[1722086460518,20.5,186.86,186.78,5.3538]
[1722086460718,0.5,186.85,186.78,5.3538]
[1722086461234,20.5,186.86,186.77,13.3849]
[1722086461447,15.6771,186.87,186.8,5.3532]
[1722086461811,0.5,186.86,186.79,13.3834]
[1722086462130,0.5,186.85,186.77,5.3541]
[1722086462318,45.0,186.85,186.77,5.3541]
[1722086462817,25.3518,186.86,186.77,5.3541]
[1722086463217,0.5,186.85,186.77,5.3541]
[1722086463532,20.0,186.84,186.76,18.7404]
[1722086463738,5.8519,186.85,186.76,18.7404]
[1722086464438,20.0,186.84,186.76,18.7404]
[1722086465040,5.8519,186.85,186.76,18.7404]
[1722086465225,41.23635956,186.87,186.77,5.3539]
[1722086465532,21.0284,186.87,186.79,5.3533]
[1722086466037,20.5,186.89,186.8,6.3553]
[1722086466236,35.1825,186.93,186.8,5.3553]
[1722086466428,35.1825,186.93,186.85,5.3518]
[1722086466741,35.6825,186.93,186.85,5.3518]
[1722086466914,41.0321,186.93,186.85,4.3518]
[1722086467338,41.0321,186.93,186.82,13.3816]
[1722086467535,41.0321,186.93,186.84,5.352]
[1722086467931,35.1825,186.93,186.84,5.352]
[1722086468129,40.5321,186.93,186.84,5.352]
[1722086468631,40.5321,186.93,186.82,13.3816]
[1722086468632,5.35,186.92,186.83,5.3524]
[1722086468835,5.3502,186.91,186.83,5.3524]
[1722086469042,0.5,186.9,186.83,5.3524]
[1722086469545,5.3502,186.91,186.83,5.3524]
[1722086469838,5.8499,186.92,186.83,5.3524]
[1722086470140,20.5,186.96,186.85,13.3796]
[1722086470321,21.139,186.98,186.89,5.3506]
[1722086470521,21.139,186.98,186.88,18.7284]
[1722086470836,5.3485,186.97,186.89,5.3507]
[1722086471033,17.7385,186.97,186.9,12.39]
[1722086471241,0.5,186.98,186.93,12.39]
[1722086471539,15.7906,187.03,186.96,12.39]
[1722086471540,48.1806,187.03,186.96,12.39]
[1722086471737,12.39,187.01,186.94,12.39]
[1722086471946,12.39,187.01,186.93,13.3739]
[1722086471947,16.9004731,187.01,186.93,13.3739]
[1722086472126,11.0531731,187.01,186.94,17.7392]
[1722086472941,12.39,187.0,186.94,17.7392]
[1722086473134,0.5,186.99,186.93,13.3739]
[1722086473534,0.5,186.99,186.92,5.3496]
[1722086474228,0.5,186.98,186.9,13.376]
[1722086475050,0.5,186.98,186.92,5.3498]
[1722086475343,20.5,187.02,186.94,13.3731]
[1722086475536,0.5,187.01,186.94,18.7223]
[1722086475739,45.5,187.01,186.94,18.7223]
[1722086475943,45.5,187.01,186.92,5.3496]
[1722086476133,45.5,187.01,186.91,13.3753]
[1722086476134,65.5,187.01,186.91,13.3753]
[1722086476330,65.5,187.01,186.94,5.3492]
[1722086476727,70.8473,187.01,186.92,5.3498]
[1722086477125,70.8473,187.01,186.93,5.3495]
[1722086477930,20.0,186.99,186.91,18.7254]
[1722086478140,0.5,186.98,186.92,5.3498]
[1722086478331,20.5,186.99,186.92,5.3498]
[1722086478849,20.0,186.96,186.9,5.3501]
[1722086479146,0.5,186.95,186.9,5.3501]
[1722086479725,20.5,186.98,186.9,5.3501]
[1722086479929,35.7906,186.94,186.88,13.3774]
[1722086480459,36.2906,186.94,186.88,13.3774]
[1722086480645,36.2906,186.94,186.88,18.7282]
[1722086480959,0.5,186.93,186.88,18.7283]
[1722086481128,0.5,186.93,186.88,13.3774]
[1722086482346,35.7906,186.98,186.91,5.3499]
[1722086482546,0.5,186.96,186.91,5.3499]
[1722086482727,0.5,186.96,186.92,5.3498]
[1722086483049,0.5,186.96,186.87,26.7565]
[1722086483050,16.2906,186.98,186.94,5.3491]
[1722086483224,16.2906,186.98,186.93,13.3736]
[1722086483430,16.2906,186.98,186.9,13.376]
[1722086483648,35.7906,186.98,186.9,13.376]
[1722086483833,15.7906,186.98,186.92,5.3496]
[1722086484033,15.7906,186.98,186.93,5.3495]
[1722086484437,16.2906,186.98,186.92,18.7236]
[1722086484630,16.2906,186.98,186.92,13.374]
[1722086484831,16.2906,186.98,186.93,5.3495]
[1722086485761,15.7906,186.98,186.94,5.3493]
[1722086486143,16.2906,186.98,186.92,18.7236]
[1722086486659,36.2906,186.98,186.92,18.7236]
[1722086487149,0.5,187.0,186.92,13.374]
[1722086487349,0.5,187.0,186.94,5.3491]
[1722086487545,20.0,186.98,186.92,18.7237]
[1722086487953,20.5,186.98,186.92,18.7237]
[1722086488671,20.5,186.98,186.92,13.374]
[1722086488856,20.5,186.98,186.87,26.7565]
[1722086488857,20.0,186.98,186.9,5.3504]
[1722086489164,20.5,186.98,186.91,5.35]
[1722086489461,5.5495523,187.0,186.9,13.3755]
[1722086489462,26.0495523,187.0,186.9,13.3755]
[1722086489675,45.0,186.99,186.93,5.3495]
[1722086489971,0.5,186.98,186.93,5.3495]
[1722086490146,45.0,186.99,186.93,5.3495]
[1722086490355,0.5,186.98,186.93,5.3495]
[1722086490661,0.5,186.98,186.91,5.3499]
[1722086490861,20.5,186.98,186.91,5.3499]
[1722086491166,20.0,186.98,186.92,5.3498]
[1722086493663,20.0,186.95,186.9,13.3755]
[1722086493846,45.0,186.99,186.9,13.3755]
[1722086494050,45.0,186.99,186.93,5.3494]
[1722086494463,45.0,186.99,186.92,18.7239]
[1722086494971,45.0,186.99,186.93,5.3495]
[1722086495149,12.39,186.98,186.93,5.3495]
[1722086495356,12.39,187.0,186.94,13.3727]
[1722086495544,12.89,187.01,186.95,5.3487]
[1722086495746,20.0,187.02,186.96,13.3711]
[1722086496049,28.3618,187.03,186.96,25.7611]
[1722086496253,28.3618,187.03,186.97,5.3484]
[1722086496455,15.9718,187.03,186.97,5.3484]
[1722086496962,28.3618,187.03,186.97,5.3484]
[1722086497165,28.8618,187.03,186.97,5.3484]
[1722086497362,28.8618,187.03,186.96,31.1097]
[1722086497545,12.39,187.02,186.96,18.7197]
[1722086498467,12.39,187.02,186.92,6.6649]
[1722086498468,12.39,187.06,186.99,12.39]
[1722086498671,28.4011,187.08,187.02,5.3469]
[1722086498972,28.4011,187.08,187.01,5.3472]
[1722086499139,16.0111,187.08,187.01,5.3472]
[1722086499869,0.5,187.07,187.0,18.7155]
[1722086500165,0.5,187.07,187.01,5.3472]
[1722086500364,0.5,187.07,187.0,13.3682]
[1722086500770,0.5,187.07,186.97,13.3709]
[1722086500771,20.0,187.05,186.97,13.3709]
[1722086500956,20.0,187.07,186.97,13.3709]
[1722086501264,16.0111,187.08,187.01,5.3472]
[1722086501467,16.0111,187.08,187.02,5.3468]
[1722086502248,0.5,187.07,187.01,18.7149]
[1722086503280,20.5,187.07,187.01,13.3677]
[1722086503453,20.0,187.07,186.98,13.3702]
[1722086503771,25.3456,187.07,186.99,5.3475]
[1722086504157,25.3456,187.07,186.98,13.3702]
[1722086504158,20.0,187.05,186.98,18.7183]
[1722086504473,20.0,187.05,186.99,5.3478]
[1722086505360,20.0,187.05,186.98,18.7183]
[1722086505579,20.0,187.05,186.99,5.3478]
[1722086506048,20.0,187.07,187.0,13.3684]
[1722086506249,21.56094213,187.08,187.01,5.347]
[1722086506451,0.5,187.07,187.02,5.3469]
[1722086506855,16.0111,187.08,187.03,5.3467]
[1722086507281,16.0111,187.08,187.02,5.347]